fUST/lending_fUST_20250528
["ID","MTS","AMOUNT","RATE_DAILY","PERIOD"]
[362688296,1748398234295,-430.0,0.00019178,2]
[362688298,1748398234304,-430.0,0.00019178,2]
[362688300,1748398234314,-430.0,0.00019178,2]
[362688302,1748398234323,-430.0,0.00019178,2]
[362688304,1748398234333,-430.0,0.00019178,2]
[362688306,1748398234343,-430.0,0.00019178,2]
[362688308,1748398234354,-430.0,0.00019178,2]
[362688310,1748398234364,-430.0,0.00019178,2]
[362688312,1748398234374,-430.0,0.00019178,2]
[362688314,1748398234384,-430.0,0.00019178,2]
[362688316,1748398234394,-430.0,0.00019178,2]
[362688318,1748398234404,-430.0,0.00019178,2]
[362688320,1748398234414,-430.0,0.00019178,2]
[362688322,1748398234424,-430.0,0.00019178,2]
[362688323,1748398234434,-430.0,0.00019178,2]
[362688326,1748398234444,-430.0,0.00019178,2]
[362688327,1748398234455,-174.29601501,0.00019178,2]
[362688329,1748398234465,-430.0,0.00019178,2]
[362688331,1748398234476,-430.0,0.00019178,2]
[362688333,1748398234485,-430.0,0.00019178,2]
[362688335,1748398234495,-434.85258455,0.00019178,2]
[362688337,1748398234505,-430.0,0.00019178,2]
[362688339,1748398234515,-430.0,0.00019178,2]
[362688341,1748398234525,-430.0,0.00019178,2]
[362688343,1748398234536,-430.0,0.00019178,2]
[362688345,1748398234546,-430.0,0.00019178,2]
[362688347,1748398234557,-446.33327063,0.00019178,2]
[362688349,1748398234567,-433.69738199,0.00019178,2]
[362688351,1748398234577,-430.0,0.00019178,2]
[362688353,1748398234587,-430.0,0.00019178,2]
[362688355,1748398234597,-430.0,0.00019178,2]
[362688357,1748398234607,-430.0,0.00019178,2]
[362688359,1748398234617,-430.0,0.00019178,2]
[362688361,1748398234628,-430.0,0.00019178,2]
[362688363,1748398234638,-430.0,0.00019178,2]
[362688365,1748398234647,-430.0,0.00019178,2]
[362688367,1748398234658,-430.0,0.00019178,2]
[362688369,1748398234669,-430.0,0.00019178,2]
[362688372,1748398234679,-430.0,0.00019178,2]
[362688373,1748398234688,-435.08486191,0.00019178,2]
[362688375,1748398234698,-434.85855828,0.00019178,2]
[362688377,1748398234709,-402.41880344,0.00019178,2]
[362688379,1748398234718,-430.0,0.00019178,2]
[362688381,1748398234728,-430.0,0.00019178,2]
[362688383,1748398234737,-430.0,0.00019178,2]
[362688385,1748398234747,-1886.1,0.00019178,2]
[362688387,1748398234756,-430.0,0.00019178,2]
[362688389,1748398234766,-430.0,0.00019178,2]
[362688391,1748398234776,-430.0,0.00019178,2]
[362688393,1748398234785,-430.0,0.00019178,2]
[362688395,1748398234795,-430.0,0.00019178,2]
[362688397,1748398234804,-430.0,0.00019178,2]
[362688399,1748398234813,-430.0,0.00019178,2]
[362688401,1748398234823,-430.0,0.00019178,2]
[362688403,1748398234833,-430.0,0.00019178,2]
[362688405,1748398234842,-430.0,0.00019178,2]
[362688407,1748398234851,-434.65667424,0.00019178,2]
[362688409,1748398234860,-430.0,0.00019178,2]
[362688411,1748398234872,-430.0,0.00019178,2]
[362688413,1748398234884,-430.0,0.00019178,2]
[362688415,1748398234894,-430.0,0.00019178,2]
[362688417,1748398234903,-430.0,0.00019178,2]
[362688419,1748398234914,-436.69231254,0.00019178,2]
[362688421,1748398234924,-430.0,0.00019178,2]
[362688423,1748398234933,-430.0,0.00019178,2]
[362688425,1748398234946,-430.0,0.00019178,2]
[362688427,1748398234959,-430.0,0.00019178,2]
[362688429,1748398234973,-430.0,0.00019178,2]
[362688432,1748398234986,-430.0,0.00019178,2]
[362688434,1748398234999,-430.0,0.00019178,2]
[362688436,1748398235011,-2355.4,0.00019178,2]
[362688438,1748398235022,-430.0,0.00019178,2]
[362688440,1748398235034,-430.0,0.00019178,2]
[362688443,1748398235047,-430.0,0.00019178,2]
[362688445,1748398235058,-402.19656822,0.00019178,2]
[362688447,1748398235069,-430.0,0.00019178,2]
[362688449,1748398235082,-430.0,0.00019178,2]
[362688451,1748398235094,-430.0,0.00019178,2]
[362688454,1748398235106,-430.0,0.00019178,2]
[362688456,1748398235118,-430.0,0.00019178,2]
[362688458,1748398235129,-430.0,0.00019178,2]
[362688460,1748398235140,-430.0,0.00019178,2]
[362688462,1748398235152,-430.0,0.00019178,2]
[362688465,1748398235165,-430.0,0.00019178,2]
[362688467,1748398235176,-430.0,0.00019178,2]
[362688469,1748398235188,-464.93363089,0.00019178,2]
[362688471,1748398235199,-56.74500844,0.00019178,2]
[362688474,1748398235219,-373.25499156,0.00019178,2]
[362688477,1748398235231,-307.79279352,0.00019178,2]
[362688501,1748398235460,-141.71720648,0.00019178,2]
[362688506,1748398235490,-92.49180724,0.00019178,2]
[362688761,1748398238173,-324.89178857,0.00018986,2]
[362688768,1748398238225,-1248.4144139,0.00018986,2]
[362688770,1748398238236,-360.84556709,0.00019178,2]
[362688772,1748398238247,-430.0,0.00019178,2]
[362688774,1748398238258,-384.22252767,0.00019178,2]
[362688778,1748398238281,-45.77747233,0.00019178,2]
[362688780,1748398238291,-430.0,0.00019178,2]
[362688782,1748398238303,-430.0,0.00019178,2]
[362688784,1748398238313,-160.06845878,0.00019178,2]
[362688821,1748398238660,-227.877427,0.00019178,2]
[362688965,1748398240091,-67.51123158,0.00019178,2]
[362688969,1748398240118,-153.56906213,0.00019178,2]
[362689225,1748398242645,-155.18199615,0.00019178,2]
[362689258,1748398243373,-121.24894172,0.00019178,2]
[362689259,1748398243384,-401.38405022,0.00019178,2]
[362689260,1748398243393,-430.0,0.00019178,2]
[362689261,1748398243403,-430.0,0.00019178,2]
[362689262,1748398243412,-430.0,0.00019178,2]
[362689263,1748398243421,-430.0,0.00019178,2]
[362689264,1748398243431,-404.65201298,0.00019178,2]
[362689265,1748398243440,-145.05100633,0.00019178,2]
[362689293,1748398245541,-0.02505914,0.00019178,2]
[362689294,1748398245576,-222.03970629,0.00019178,2]
[362689343,1748398246371,-62.88422824,0.00019178,2]
[362689345,1748398246381,-430.0,0.00019178,2]
[362689347,1748398246390,-406.30004039,0.00019178,2]
[362689349,1748398246399,-430.0,0.00019178,2]
[362689351,1748398246408,-430.0,0.00019178,2]
[362689353,1748398246416,-430.0,0.00019178,2]
[362689355,1748398246425,-430.0,0.00019178,2]
[362689357,1748398246434,-306.3233622,0.00019178,2]
[362689359,1748398246443,-430.0,0.00019178,2]
[362689361,1748398246453,-430.0,0.00019178,2]
[362689363,1748398246463,-430.0,0.00019178,2]
[362689365,1748398246472,-430.0,0.00019178,2]
[362689367,1748398246481,-454.91787816,0.00019178,2]
[362689370,1748398246490,-455.66058344,0.00019178,2]
[362689373,1748398246499,-452.35355803,0.00019178,2]
[362689375,1748398246508,-430.0,0.00019178,2]
[362689377,1748398246516,-430.0,0.00019178,2]
[362689379,1748398246525,-430.0,0.00019178,2]
[362689381,1748398246533,-405.58119401,0.00019178,2]
[362689383,1748398246542,-430.0,0.00019178,2]
[362689385,1748398246552,-430.0,0.00019178,2]
[362689388,1748398246562,-430.0,0.00019178,2]
[362689390,1748398246572,-430.0,0.00019178,2]
[362689392,1748398246581,-430.0,0.00019178,2]
[362689394,1748398246590,-455.88293262,0.00019178,2]
[362689396,1748398246601,-430.0,0.00019178,2]
[362689398,1748398246610,-430.0,0.00019178,2]
[362689400,1748398246619,-430.0,0.00019178,2]
[362689402,1748398246629,-310.20403447,0.00019178,2]
[362689403,1748398246638,-460.78679821,0.00019178,2]
[362689406,1748398246647,-430.0,0.00019178,2]
[362689408,1748398246656,-430.0,0.00019178,2]
[362689409,1748398246665,-358.090129,0.00019178,2]
[362689411,1748398246674,-433.932108,0.00019178,2]
[362689413,1748398246683,-356.8757382,0.00019178,2]
[362689416,1748398246696,-73.1242618,0.00019178,2]
[362689418,1748398246705,-436.49935709,0.00019178,2]
[362689420,1748398246715,-402.85085426,0.00019178,2]
[362689422,1748398246724,-430.0,0.00019178,2]
[362689424,1748398246733,-430.0,0.00019178,2]
[362689426,1748398246742,-430.0,0.00019178,2]
[362689428,1748398246751,-430.0,0.00019178,2]
[362689430,1748398246760,-430.0,0.00019178,2]
[362689432,1748398246769,-430.0,0.00019178,2]
[362689434,1748398246778,-455.07121492,0.00019178,2]
[362689436,1748398246787,-430.0,0.00019178,2]
[362689438,1748398246796,-440.29347068,0.00019178,2]
[362689440,1748398246806,-430.0,0.00019178,2]
[362689442,1748398246815,-440.56526142,0.00019178,2]
[362689444,1748398246824,-455.83317655,0.00019178,2]
[362689446,1748398246833,-430.0,0.00019178,2]
[362689448,1748398246843,-430.0,0.00019178,2]
[362689450,1748398246852,-430.0,0.00019178,2]
[362689452,1748398246861,-430.0,0.00019178,2]
[362689454,1748398246870,-430.0,0.00019178,2]
[362689456,1748398246883,-454.81179761,0.00019178,2]
[362689458,1748398246892,-433.84773755,0.00019178,2]
[362689460,1748398246901,-430.0,0.00019178,2]
[362689462,1748398246910,-430.0,0.00019178,2]
[362689464,1748398246921,-324.76377024,0.00019178,2]
[362689466,1748398246930,-430.0,0.00019178,2]
[362689468,1748398246939,-430.0,0.00019178,2]
[362689470,1748398246949,-561.26371028,0.00019178,2]
[362689472,1748398246958,-430.0,0.00019178,2]
[362689474,1748398246968,-454.12423501,0.00019178,2]
[362689476,1748398246977,-430.0,0.00019178,2]
[362689478,1748398246986,-430.0,0.00019178,2]
[362689480,1748398246995,-430.0,0.00019178,2]
[362689482,1748398247004,-453.5806818,0.00019178,2]
[362689484,1748398247014,-404.64797844,0.00019178,2]
[362689486,1748398247022,-430.0,0.00019178,2]
[362689488,1748398247031,-430.0,0.00019178,2]
[362689490,1748398247040,-430.0,0.00019178,2]
[362689492,1748398247050,-430.0,0.00019178,2]
[362689494,1748398247059,-430.0,0.00019178,2]
[362689496,1748398247069,-430.0,0.00019178,2]
[362689498,1748398247078,-281.66154018,0.00019178,2]
[362689500,1748398247087,-430.0,0.00019178,2]
[362689502,1748398247096,-453.54405655,0.00019178,2]
[362689504,1748398247106,-401.48543858,0.00019178,2]
[362689506,1748398247115,-430.0,0.00019178,2]
[362689508,1748398247124,-430.0,0.00019178,2]
[362689510,1748398247133,-430.0,0.00019178,2]
[362689512,1748398247142,-430.0,0.00019178,2]
[362689514,1748398247152,-430.0,0.00019178,2]
[362689516,1748398247162,-430.0,0.00019178,2]
[362689518,1748398247172,-430.0,0.00019178,2]
[362689520,1748398247181,-430.0,0.00019178,2]
[362689522,1748398247191,-455.98865843,0.00019178,2]
[362689524,1748398247200,-438.45526982,0.00019178,2]
[362689526,1748398247209,-430.0,0.00019178,2]
[362689528,1748398247219,-433.03518919,0.00019178,2]
[362689530,1748398247228,-513.80081194,0.00019178,2]
[362689532,1748398247237,-209.70878645,0.00019178,2]
[362689534,1748398247247,-430.0,0.00019178,2]
[362689536,1748398247256,-430.0,0.00019178,2]
[362689538,1748398247265,-430.0,0.00019178,2]
[362689540,1748398247275,-430.0,0.00019178,2]
[362689542,1748398247283,-430.0,0.00019178,2]
[362689544,1748398247293,-430.0,0.00019178,2]
[362689546,1748398247302,-430.0,0.00019178,2]
[362689548,1748398247311,-430.0,0.00019178,2]
[362689550,1748398247320,-430.0,0.00019178,2]
[362689552,1748398247330,-430.0,0.00019178,2]
[362689554,1748398247339,-430.0,0.00019178,2]
[362689556,1748398247349,-430.0,0.00019178,2]
[362689558,1748398247359,-430.0,0.00019178,2]
[362689560,1748398247368,-430.0,0.00019178,2]
[362689562,1748398247378,-855.4,0.00019178,2]
[362689564,1748398247388,-430.0,0.00019178,2]
[362689566,1748398247398,-430.0,0.00019178,2]
[362689568,1748398247407,-430.0,0.00019178,2]
[362689570,1748398247417,-430.0,0.00019178,2]
[362689572,1748398247427,-430.0,0.00019178,2]
[362689574,1748398247436,-405.7702797,0.00019178,2]
[362689576,1748398247445,-430.0,0.00019178,2]
[362689578,1748398247455,-435.90605448,0.00019178,2]
[362689580,1748398247464,-437.19863555,0.00019178,2]
[362689583,1748398247474,-430.0,0.00019178,2]
[362689584,1748398247484,-530.79278728,0.00019178,2]
[362689586,1748398247494,-430.0,0.00019178,2]
[362689588,1748398247504,-435.38822028,0.00019178,2]
[362689590,1748398247513,-534.82105401,0.00019178,2]
[362689592,1748398247523,-430.0,0.00019178,2]
[362689594,1748398247532,-430.0,0.00019178,2]
[362689596,1748398247541,-430.0,0.00019178,2]
[362689598,1748398247550,-155.30352363,0.00019215,2]
[362689600,1748398247561,-430.0,0.00019305,2]
[362689603,1748398247570,-430.0,0.00019305,2]
[362689604,1748398247580,-430.0,0.00019305,2]
[362689607,1748398247590,-430.0,0.00019305,2]
[362689609,1748398247602,-430.0,0.00019305,2]
[362689611,1748398247612,-1259.42,0.00019305,2]
[362689613,1748398247621,-2322.3806518,0.00019306,2]
[362689615,1748398247630,-503.60615907,0.00019325,2]
[362689616,1748398247640,-155.30352363,0.00019352,2]
[362689617,1748398247650,-383.81150904,0.00019367,2]
[362689618,1748398247660,-152.0,0.00019404,2]
[362689619,1748398247669,-507.62024783,0.00019431,2]
[362689620,1748398247679,-522.54979207,0.00019431,2]
[362689621,1748398247689,-442.86245648,0.00019452,2]
[362689622,1748398247698,-435.75553984,0.00019452,2]
[362689623,1748398247708,-440.06273518,0.00019452,2]
[362689624,1748398247718,-440.81237677,0.00019452,2]
[362689625,1748398247727,-430.0,0.00019452,2]
[362689626,1748398247736,-447.84089805,0.00019452,2]
[362689627,1748398247746,-438.0165135,0.00019452,2]
[362689628,1748398247755,-436.19866317,0.00019452,2]
[362689629,1748398247764,-425.4328462,0.00019452,2]
[362689630,1748398247778,-450.13722569,0.00019452,2]
[362689631,1748398247787,-444.65935972,0.00019452,2]
[362689632,1748398247796,-430.0,0.00019452,2]
[362689633,1748398247805,-439.41758586,0.00019452,2]
[362689634,1748398247814,-442.58499536,0.00019452,2]
[362689635,1748398247824,-444.14405866,0.00019452,2]
[362689636,1748398247834,-441.85558968,0.00019452,2]
[362689637,1748398247844,-439.45147197,0.00019452,2]
[362689639,1748398247854,-430.0,0.00019452,2]
[362689641,1748398247863,-440.44697408,0.00019452,2]
[362689643,1748398247875,-440.52945816,0.00019452,2]
[362689645,1748398247884,-430.0,0.00019452,2]
[362689647,1748398247894,-442.6385295,0.00019452,2]
[362689649,1748398247904,-461.84019549,0.00019452,2]
[362689651,1748398247914,-457.78707038,0.00019452,2]
[362689653,1748398247923,-442.07427984,0.00019452,2]
[362689655,1748398247932,-430.0,0.00019452,2]
[362689657,1748398247942,-430.0,0.00019452,2]
[362689659,1748398247951,-438.11241055,0.00019452,2]
[362689661,1748398247960,-430.0,0.00019452,2]
[362689663,1748398247970,-430.0,0.00019452,2]
[362689665,1748398247980,-430.0,0.00019452,2]
[362689667,1748398247990,-441.85248504,0.00019452,2]
[362689669,1748398247999,-443.20332421,0.00019452,2]
[362689671,1748398248008,-430.0,0.00019452,2]
[362689673,1748398248017,-442.97512326,0.00019452,2]
[362689675,1748398248028,-430.0,0.00019452,2]
[362689677,1748398248037,-442.2762927,0.00019452,2]
[362689679,1748398248046,-435.77000041,0.00019452,2]
[362689681,1748398248056,-438.48869438,0.00019452,2]
[362689683,1748398248066,-437.41547187,0.00019452,2]
[362689685,1748398248075,-430.0,0.00019452,2]
[362689687,1748398248085,-441.68749281,0.00019452,2]
[362689688,1748398248094,-430.0,0.00019452,2]
[362689690,1748398248104,-430.0,0.00019452,2]
[362689692,1748398248113,-430.0,0.00019452,2]
[362689694,1748398248122,-430.0,0.00019452,2]
[362689696,1748398248132,-430.0,0.00019452,2]
[362689698,1748398248142,-430.0,0.00019452,2]
[362689700,1748398248151,-446.45424098,0.00019452,2]
[362689702,1748398248161,-430.0,0.00019452,2]
[362689704,1748398248170,-430.0,0.00019452,2]
[362689706,1748398248181,-442.29743177,0.00019452,2]
[362689708,1748398248191,-430.0,0.00019452,2]
[362689710,1748398248200,-439.17354501,0.00019452,2]
[362689712,1748398248210,-430.0,0.00019452,2]
[362689714,1748398248220,-430.0,0.00019452,2]
[362689716,1748398248229,-437.5980421,0.00019452,2]
[362689718,1748398248239,-456.49093208,0.00019452,2]
[362689720,1748398248248,-430.0,0.00019452,2]
[362689722,1748398248257,-430.0,0.00019452,2]
[362689724,1748398248266,-430.0,0.00019452,2]
[362689726,1748398248275,-430.0,0.00019452,2]
[362689728,1748398248284,-436.8009438,0.00019452,2]
[362689730,1748398248293,-437.25198254,0.00019452,2]
[362689732,1748398248302,-440.61885562,0.00019452,2]
[362689734,1748398248311,-433.95271596,0.00019452,2]
[362689736,1748398248321,-441.11069608,0.00019452,2]
[362689738,1748398248331,-437.02708098,0.00019452,2]
[362689740,1748398248341,-430.0,0.00019452,2]
[362689743,1748398248352,-430.0,0.00019452,2]
[362689744,1748398248362,-439.08367029,0.00019452,2]
[362689746,1748398248372,-430.0,0.00019452,2]
[362689748,1748398248381,-202.99714916,0.00019452,2]
[362689750,1748398248391,-430.0,0.00019452,2]
[362689753,1748398248400,-430.0,0.00019452,2]
[362689755,1748398248412,-430.0,0.00019452,2]
[362689757,1748398248422,-430.0,0.00019452,2]
[362689759,1748398248432,-477.90193848,0.00019452,2]
[362689761,1748398248442,-430.0,0.00019452,2]
[362689763,1748398248451,-443.76625275,0.00019452,2]
[362689765,1748398248460,-515.57771539,0.00019452,2]
[362689767,1748398248469,-430.0,0.00019452,2]
[362689769,1748398248479,-447.07729999,0.00019452,2]
[362689782,1748398248597,-437.830764,0.00019452,2]
[362689784,1748398248607,-430.0,0.00019452,2]
[362689786,1748398248617,-434.16316964,0.00019452,2]
[362689788,1748398248628,-1886.1,0.00019452,2]
[362689790,1748398248638,-430.0,0.00019452,2]
[362689792,1748398248648,-438.40089247,0.00019452,2]
[362689794,1748398248658,-430.0,0.00019452,2]
[362689796,1748398248668,-435.59456352,0.00019452,2]
[362689798,1748398248678,-447.35834103,0.00019452,2]
[362689800,1748398248688,-430.0,0.00019452,2]
[362689802,1748398248697,-430.0,0.00019452,2]
[362689804,1748398248707,-443.00019899,0.00019452,2]
[362689806,1748398248717,-430.0,0.00019452,2]
[362689808,1748398248727,-457.02995067,0.00019452,2]
[362689810,1748398248736,-430.0,0.00019452,2]
[362689812,1748398248747,-430.0,0.00019452,2]
[362689815,1748398248758,-430.0,0.00019452,2]
[362689817,1748398248767,-430.0,0.00019452,2]
[362689819,1748398248776,-437.08601184,0.00019452,2]
[362689821,1748398248786,-437.85237846,0.00019452,2]
[362689823,1748398248795,-430.0,0.00019452,2]
[362689825,1748398248804,-436.43529431,0.00019452,2]
[362689827,1748398248814,-2355.4,0.00019452,2]
[362689829,1748398248824,-430.0,0.00019452,2]
[362689831,1748398248834,-430.0,0.00019452,2]
[362689833,1748398248845,-430.0,0.00019452,2]
[362689835,1748398248854,-430.0,0.00019452,2]
[362689837,1748398248863,-430.0,0.00019452,2]
[362689839,1748398248874,-430.0,0.00019452,2]
[362689841,1748398248886,-430.0,0.00019452,2]
[362689843,1748398248895,-430.0,0.00019452,2]
[362689845,1748398248906,-430.0,0.00019452,2]
[362689846,1748398248915,-436.01253595,0.00019452,2]
[362689849,1748398248926,-430.0,0.00019452,2]
[362689851,1748398248936,-430.0,0.00019452,2]
[362689853,1748398248947,-430.0,0.00019452,2]
[362689855,1748398248957,-430.0,0.00019452,2]
[362689857,1748398248969,-449.51,0.00019452,2]
[362689859,1748398248979,-430.0,0.00019452,2]
[362689861,1748398248989,-430.0,0.00019452,2]
[362689863,1748398248999,-430.0,0.00019452,2]
[362689865,1748398249009,-434.04867255,0.00019452,2]
[362689867,1748398249019,-438.94821397,0.00019452,2]
[362689869,1748398249029,-430.0,0.00019452,2]
[362689871,1748398249038,-430.0,0.00019452,2]
[362689873,1748398249048,-430.0,0.00019452,2]
[362689875,1748398249058,-430.0,0.00019452,2]
[362689878,1748398249068,-439.60017809,0.00019452,2]
[362689880,1748398249078,-430.0,0.00019452,2]
[362689881,1748398249088,-430.0,0.00019452,2]
[362689883,1748398249100,-444.39526378,0.00019452,2]
[362689885,1748398249110,-439.76137931,0.00019452,2]
[362689887,1748398249120,-430.0,0.00019452,2]
[362689889,1748398249130,-430.0,0.00019452,2]
[362689891,1748398249140,-430.0,0.00019452,2]
[362689893,1748398249151,-438.86003611,0.00019452,2]
[362689895,1748398249162,-430.0,0.00019452,2]
[362689897,1748398249171,-430.0,0.00019452,2]
[362689899,1748398249181,-438.07753015,0.00019452,2]
[362689901,1748398249192,-430.0,0.00019452,2]
[362689903,1748398249202,-430.0,0.00019452,2]
[362689905,1748398249212,-430.0,0.00019452,2]
[362689907,1748398249221,-473.71481268,0.00019452,2]
[362689910,1748398249231,-430.0,0.00019452,2]
[362689911,1748398249242,-430.0,0.00019452,2]
[362689913,1748398249251,-430.0,0.00019452,2]
[362689915,1748398249260,-430.0,0.00019452,2]
[362689918,1748398249270,-430.0,0.00019452,2]
[362689920,1748398249280,-430.0,0.00019452,2]
[362689922,1748398249290,-430.0,0.00019452,2]
[362689924,1748398249300,-430.0,0.00019452,2]
[362689926,1748398249310,-430.0,0.00019452,2]
[362689928,1748398249319,-436.52516877,0.00019452,2]
[362689930,1748398249328,-495.4,0.00019452,2]
[362689932,1748398249339,-440.61068936,0.00019452,2]
[362689933,1748398249349,-447.40991592,0.00019452,2]
[362689935,1748398249358,-430.0,0.00019452,2]
[362689937,1748398249369,-430.0,0.00019452,2]
[362689939,1748398249378,-430.0,0.00019452,2]
[362689941,1748398249388,-430.0,0.00019452,2]
[362689943,1748398249398,-455.86295154,0.00019452,2]
[362689945,1748398249408,-436.80623305,0.00019452,2]
[362689948,1748398249418,-430.0,0.00019452,2]
[362689950,1748398249429,-430.0,0.00019452,2]
[362689952,1748398249438,-436.97986081,0.00019452,2]
[362689954,1748398249448,-430.0,0.00019452,2]
[362689956,1748398249457,-438.02812103,0.00019452,2]
[362689958,1748398249467,-430.0,0.00019452,2]
[362689960,1748398249476,-430.0,0.00019452,2]
[362689961,1748398249486,-430.0,0.00019452,2]
[362689964,1748398249498,-374.43437231,0.00019452,2]
[362689966,1748398249508,-430.0,0.00019452,2]
[362689968,1748398249518,-430.0,0.00019452,2]
[362689970,1748398249527,-430.0,0.00019452,2]
[362689972,1748398249537,-430.0,0.00019452,2]
[362689974,1748398249547,-440.85,0.00019452,2]
[362689976,1748398249557,-430.0,0.00019452,2]
[362689978,1748398249569,-430.0,0.00019452,2]
[362689980,1748398249578,-436.73918335,0.00019452,2]
[362689982,1748398249588,-430.0,0.00019452,2]
[362689984,1748398249599,-445.52197514,0.00019452,2]
[362689986,1748398249609,-439.91238904,0.00019452,2]
[362689988,1748398249620,-173.40898391,0.00019452,2]
[362689990,1748398249630,-395.07161239,0.00019452,2]
[362689992,1748398249640,-430.0,0.00019452,2]
[362689994,1748398249649,-430.0,0.00019452,2]
[362689996,1748398249659,-430.0,0.00019452,2]
[362689998,1748398249669,-445.24017665,0.00019452,2]
[362690000,1748398249679,-439.83429987,0.00019452,2]
[362690002,1748398249689,-429.66212935,0.00019452,2]
[362690004,1748398249699,-430.0,0.00019452,2]
[362690006,1748398249709,-430.0,0.00019452,2]
[362690008,1748398249719,-473.57849308,0.00019452,2]
[362690010,1748398249729,-476.0308684,0.00019452,2]
[362690013,1748398249739,-436.14059232,0.00019452,2]
[362690015,1748398249750,-474.47727697,0.00019452,2]
[362690017,1748398249760,-439.45499039,0.00019452,2]
[362690019,1748398249769,-430.0,0.00019452,2]
[362690021,1748398249778,-855.4,0.00019452,2]
[362690023,1748398249788,-430.0,0.00019452,2]
[362690025,1748398249797,-430.0,0.00019452,2]
[362690027,1748398249806,-437.75766194,0.00019452,2]
[362690029,1748398249817,-436.17980682,0.00019452,2]
[362690031,1748398249827,-437.5983912,0.00019452,2]
[362690033,1748398249836,-430.0,0.00019452,2]
[362690034,1748398249846,-430.0,0.00019452,2]
[362690036,1748398249855,-442.75359729,0.00019452,2]
[362690038,1748398249864,-430.0,0.00019452,2]
[362690041,1748398249879,-430.0,0.00019452,2]
[362690042,1748398249889,-502.41628693,0.00019579,2]
[362690045,1748398249899,-430.0,0.00019579,2]
[362690047,1748398249908,-430.0,0.00019579,2]
[362690049,1748398249917,-430.0,0.00019579,2]
[362690051,1748398249927,-430.0,0.00019579,2]
[362690053,1748398249936,-430.0,0.00019579,2]
[362690055,1748398249946,-1259.42,0.00019579,2]
[362690057,1748398249956,-430.0,0.00019726,2]
[362690059,1748398249966,-430.0,0.00019726,2]
[362690061,1748398249975,-448.55846196,0.00019726,2]
[362690063,1748398249985,-437.66838658,0.00019726,2]
[362690065,1748398249995,-442.99187538,0.00019726,2]
[362690067,1748398250004,-446.95766453,0.00019726,2]
[362690069,1748398250013,-482.52112201,0.00019726,2]
[362690071,1748398250023,-441.33588742,0.00019726,2]
[362690073,1748398250032,-430.0,0.00019726,2]
[362690075,1748398250042,-430.0,0.00019726,2]
[362690077,1748398250051,-453.2741811,0.00019726,2]
[362690078,1748398250060,-458.75294867,0.00019726,2]
[362690080,1748398250070,-444.06497688,0.00019726,2]
[362690082,1748398250079,-456.45945449,0.00019726,2]
[362690085,1748398250088,-448.30882688,0.00019726,2]
[362690087,1748398250101,-444.30203634,0.00019726,2]
[362690088,1748398250110,-442.79530738,0.00019726,2]
[362690090,1748398250119,-446.31081644,0.00019726,2]
[362690092,1748398250129,-440.97149529,0.00019726,2]
[362690094,1748398250139,-446.39165999,0.00019726,2]
[362690096,1748398250149,-479.98442315,0.00019726,2]
[362690098,1748398250158,-430.0,0.00019726,2]
[362690101,1748398250168,-463.96504069,0.00019726,2]
[362690103,1748398250177,-452.83495075,0.00019726,2]
[362690105,1748398250186,-444.35163942,0.00019726,2]
[362690107,1748398250195,-316.66373444,0.00019726,2]
[362690109,1748398250204,-464.57151537,0.00019726,2]